[Event "*** Titled Tuesday Blitz"]
[Site "Chess.com"]
[Date "2020.04.07"]
[Round "6"]
[White "Semen_Khanin"]
[Black "A-Fier"]
[Result "1-0"]
[WhiteElo "2657"]
[BlackElo "2811"]
[TimeControl "180+1"]
[EndTime "14:09:05 PDT"]
[Termination "Semen_Khanin won by checkmate"]

1. e4 {[%clk 0:03:00.9]} 1... c5 {[%clk 0:02:58.8]} 2. Nf3 {[%clk 0:03:00.7]}
2... e6 {[%clk 0:02:58.8]} 3. d4 {[%clk 0:03:00.5]} 3... cxd4 {[%clk 0:02:59.7]}
4. Nxd4 {[%clk 0:03:01.4]} 4... Nf6 {[%clk 0:02:59.3]} 5. Nc3 {[%clk 0:03:01.4]}
5... Nc6 {[%clk 0:02:59.8]} 6. Ndb5 {[%clk 0:03:01.4]} 6... d6 {[%clk 0:03:00]}
7. Bf4 {[%clk 0:03:00.8]} 7... e5 {[%clk 0:03:00.6]} 8. Bg5 {[%clk 0:03:01.1]}
8... a6 {[%clk 0:03:01.2]} 9. Na3 {[%clk 0:03:01.6]} 9... b5 {[%clk 0:03:01.5]}
10. Bxf6 {[%clk 0:03:02.3]} 10... gxf6 {[%clk 0:03:01.6]} 11. Nd5 {[%clk
0:03:03.2]} 11... Bg7 {[%clk 0:03:01.6]} 12. c3 {[%clk 0:03:03.8]} 12... f5
{[%clk 0:03:00.9]} 13. exf5 {[%clk 0:03:03.7]} 13... Bxf5 {[%clk 0:03:01.8]} 14.
Nc2 {[%clk 0:03:03.9]} 14... Be6 {[%clk 0:03:02.1]} 15. g3 {[%clk 0:03:03.1]}
15... O-O {[%clk 0:03:02.3]} 16. Bg2 {[%clk 0:03:03.4]} 16... f5 {[%clk
0:03:02.8]} 17. O-O {[%clk 0:03:00.5]} 17... a5 {[%clk 0:03:03.2]} 18. a4 {[%clk
0:02:56.1]} 18... b4 {[%clk 0:02:54.6]} 19. cxb4 {[%clk 0:02:55.7]} 19... axb4
{[%clk 0:02:54.8]} 20. Ndxb4 {[%clk 0:02:32.2]} 20... Nxb4 {[%clk 0:02:55.7]}
21. Nxb4 {[%clk 0:02:32.5]} 21... e4 {[%clk 0:02:49.6]} 22. a5 {[%clk
0:02:30.5]} 22... Bxb2 {[%clk 0:02:47.1]} 23. Rb1 {[%clk 0:02:27.4]} 23... Bg7
{[%clk 0:02:44.2]} 24. a6 {[%clk 0:02:24.6]} 24... d5 {[%clk 0:02:44.6]} 25. Qa4
{[%clk 0:02:13.6]} 25... d4 {[%clk 0:02:39.4]} 26. Rfd1 {[%clk 0:02:09.8]} 26...
Kh8 {[%clk 0:02:28.4]} 27. Nc6 {[%clk 0:01:14.8]} 27... Qd7 {[%clk 0:02:28.1]}
28. Qb5 {[%clk 0:01:13.6]} 28... d3 {[%clk 0:02:27.4]} 29. Qb7 {[%clk
0:01:08.9]} 29... Rfc8 {[%clk 0:02:19.4]} 30. Rb6 {[%clk 0:00:56.6]} 30... Qf7
{[%clk 0:01:51.1]} 31. g4 {[%clk 0:00:38]} 31... Qg6 {[%clk 0:01:34.7]} 32. h3
{[%clk 0:00:29.5]} 32... Bd5 {[%clk 0:01:24.5]} 33. Ne7 {[%clk 0:00:28.4]} 33...
Qxb6 {[%clk 0:00:52.3]} 34. Qxb6 {[%clk 0:00:27.5]} 34... Bc4 {[%clk 0:00:53.2]}
35. Nxf5 {[%clk 0:00:26.4]} 35... Rab8 {[%clk 0:00:44.7]} 36. Qa7 {[%clk
0:00:21.8]} 36... Be5 {[%clk 0:00:45]} 37. Bxe4 {[%clk 0:00:21.2]} 37... Bb3
{[%clk 0:00:44]} 38. Qe7 {[%clk 0:00:20.2]} 38... Re8 {[%clk 0:00:42]} 39. Rxd3
{[%clk 0:00:12.2]} 39... Rxe7 {[%clk 0:00:40]} 40. Nxe7 {[%clk 0:00:13.1]} 40...
Bc2 {[%clk 0:00:38.5]} 41. a7 {[%clk 0:00:12]} 41... Re8 {[%clk 0:00:32.1]} 42.
Re3 {[%clk 0:00:08.5]} 42... Bd4 {[%clk 0:00:28.5]} 43. a8=Q {[%clk 0:00:05.9]}
43... Rxa8 {[%clk 0:00:26.8]} 44. Bxa8 {[%clk 0:00:06.6]} 44... Bxe3 {[%clk
0:00:27.7]} 45. fxe3 {[%clk 0:00:07.5]} 45... Kg7 {[%clk 0:00:27.8]} 46. Kf2
{[%clk 0:00:08.1]} 46... Kf6 {[%clk 0:00:28.3]} 47. Nd5+ {[%clk 0:00:09]} 47...
Kg5 {[%clk 0:00:29]} 48. Nf4 {[%clk 0:00:09.9]} 48... Kh4 {[%clk 0:00:29.3]} 49.
Bg2 {[%clk 0:00:08.3]} 49... h6 {[%clk 0:00:28.5]} 50. Nh5 {[%clk 0:00:08.4]}
50... Bg6 {[%clk 0:00:28]} 51. Ng3 {[%clk 0:00:08.7]} 51... Kg5 {[%clk
0:00:26.9]} 52. Nf5 {[%clk 0:00:07.9]} 52... h5 {[%clk 0:00:27.8]} 53. Bf3
{[%clk 0:00:03.8]} 53... hxg4 {[%clk 0:00:27.7]} 54. hxg4 {[%clk 0:00:03.8]}
54... Bf7 {[%clk 0:00:28.6]} 55. Kg3 {[%clk 0:00:04.2]} 55... Kf6 {[%clk
0:00:29.5]} 56. Kf4 {[%clk 0:00:03.8]} 56... Kg6 {[%clk 0:00:29.8]} 57. g5
{[%clk 0:00:04.7]} 57... Kh7 {[%clk 0:00:30.4]} 58. e4 {[%clk 0:00:05.6]} 58...
Kg6 {[%clk 0:00:30.2]} 59. e5 {[%clk 0:00:06.5]} 59... Be6 {[%clk 0:00:30.6]}
60. Nd6 {[%clk 0:00:07.4]} 60... Kg7 {[%clk 0:00:30.7]} 61. Be4 {[%clk
0:00:08.3]} 61... Bf7 {[%clk 0:00:31.1]} 62. Nf5+ {[%clk 0:00:08.9]} 62... Kh8
{[%clk 0:00:31]} 63. Nh6 {[%clk 0:00:08.2]} 63... Be6 {[%clk 0:00:29.9]} 64. g6
{[%clk 0:00:08.6]} 64... Kg7 {[%clk 0:00:29.8]} 65. Kg5 {[%clk 0:00:09.5]} 65...
Kh8 {[%clk 0:00:28.9]} 66. Nf5 {[%clk 0:00:10.4]} 66... Bf7 {[%clk 0:00:28.2]}
67. gxf7 {[%clk 0:00:10]} 67... Kh7 {[%clk 0:00:28.6]} 68. Kf6 {[%clk
0:00:10.3]} 68... Kh8 {[%clk 0:00:28.6]} 69. f8=Q+ {[%clk 0:00:10.7]} 69... Kh7
{[%clk 0:00:29.5]} 70. Qg7# {[%clk 0:00:11.6]} 1-0

[Event "*** Titled Tuesday Blitz"]
[Site "Chess.com"]
[Date "2020.04.07"]
[Round "6"]
[White "Natalya_Buksa"]
[Black "DryCounty"]
[Result "1/2-1/2"]
[WhiteElo "2460"]
[BlackElo "2593"]
[TimeControl "180+1"]
[EndTime "14:09:05 PDT"]
[Termination "Game drawn - insufficient material"]

1. e4 {[%clk 0:03:00.9]} 1... e5 {[%clk 0:02:59.4]} 2. Nf3 {[%clk 0:03:01]} 2...
Nc6 {[%clk 0:02:59.8]} 3. Bb5 {[%clk 0:03:01.3]} 3... a6 {[%clk 0:02:59.5]} 4.
Ba4 {[%clk 0:03:01.8]} 4... Nf6 {[%clk 0:02:59.8]} 5. O-O {[%clk 0:03:01.7]}
5... Nxe4 {[%clk 0:02:59.9]} 6. Re1 {[%clk 0:03:01.6]} 6... Nc5 {[%clk
0:02:58.7]} 7. Bxc6 {[%clk 0:03:01]} 7... dxc6 {[%clk 0:02:58.7]} 8. Nxe5 {[%clk
0:03:01.9]} 8... Be7 {[%clk 0:02:57.9]} 9. d4 {[%clk 0:03:02.8]} 9... Ne6 {[%clk
0:02:57.9]} 10. c3 {[%clk 0:03:02.1]} 10... O-O {[%clk 0:02:57.4]} 11. Nd2
{[%clk 0:03:02.5]} 11... Bf6 {[%clk 0:02:55.2]} 12. Ndf3 {[%clk 0:02:58.5]}
12... Qd5 {[%clk 0:02:34.2]} 13. Bd2 {[%clk 0:02:49.4]} 13... b6 {[%clk
0:02:31.6]} 14. Qc2 {[%clk 0:02:45.4]} 14... Bb7 {[%clk 0:02:27.4]} 15. Ng4
{[%clk 0:02:43.1]} 15... Be7 {[%clk 0:02:15.1]} 16. Re5 {[%clk 0:02:38.1]} 16...
Qd8 {[%clk 0:02:08.5]} 17. Rh5 {[%clk 0:02:31.9]} 17... g6 {[%clk 0:02:04.3]}
18. Rh3 {[%clk 0:02:31.2]} 18... c5 {[%clk 0:01:45.9]} 19. Bh6 {[%clk
0:02:23.4]} 19... Re8 {[%clk 0:01:35.2]} 20. Rd1 {[%clk 0:01:54.4]} 20... Bxf3
{[%clk 0:01:14.9]} 21. Rxf3 {[%clk 0:01:51.4]} 21... cxd4 {[%clk 0:01:10.6]} 22.
Ne5 {[%clk 0:01:45]} 22... Bf6 {[%clk 0:00:53.4]} 23. Nc6 {[%clk 0:01:32.1]}
23... Qd7 {[%clk 0:00:53]} 24. Rxf6 {[%clk 0:01:29.5]} 24... Qxc6 {[%clk
0:00:52.9]} 25. h4 {[%clk 0:01:25.2]} 25... Rad8 {[%clk 0:00:49.4]} 26. h5
{[%clk 0:01:24.5]} 26... dxc3 {[%clk 0:00:46.4]} 27. Rxd8 {[%clk 0:01:22.5]}
27... Rxd8 {[%clk 0:00:45.9]} 28. bxc3 {[%clk 0:01:21.8]} 28... Qd5 {[%clk
0:00:37.2]} 29. hxg6 {[%clk 0:01:21.3]} 29... Qd1+ {[%clk 0:00:35.3]} 30. Qxd1
{[%clk 0:01:19]} 30... Rxd1+ {[%clk 0:00:35.7]} 31. Kh2 {[%clk 0:01:19.4]} 31...
hxg6 {[%clk 0:00:36.1]} 32. Rf3 {[%clk 0:01:16.8]} 32... c5 {[%clk 0:00:28.2]}
33. Bf4 {[%clk 0:01:15.9]} 33... Nxf4 {[%clk 0:00:27]} 34. Rxf4 {[%clk
0:01:15.5]} 34... Rd2 {[%clk 0:00:27.5]} 35. Rf6 {[%clk 0:01:15.7]} 35... Rxa2
{[%clk 0:00:24]} 36. Rxb6 {[%clk 0:01:15]} 36... a5 {[%clk 0:00:24.2]} 37. Rc6
{[%clk 0:01:13.6]} 37... Rxf2 {[%clk 0:00:22.7]} 38. Rxc5 {[%clk 0:01:13.9]}
38... Ra2 {[%clk 0:00:23.1]} 39. Kg3 {[%clk 0:01:11.4]} 39... a4 {[%clk
0:00:23.1]} 40. Ra5 {[%clk 0:01:11.4]} 40... Ra3 {[%clk 0:00:21.8]} 41. Rc5
{[%clk 0:01:09.7]} 41... Rb3 {[%clk 0:00:20.7]} 42. Kf4 {[%clk 0:01:07.4]} 42...
a3 {[%clk 0:00:20.4]} 43. g4 {[%clk 0:01:04.8]} 43... Kg7 {[%clk 0:00:19.9]} 44.
Ra5 {[%clk 0:01:05]} 44... Rxc3 {[%clk 0:00:19.7]} 45. g5 {[%clk 0:01:03]} 45...
Rb3 {[%clk 0:00:19.1]} 46. Ra8 {[%clk 0:01:01.5]} 46... Rb4+ {[%clk 0:00:18.4]}
47. Kg3 {[%clk 0:01:01.1]} 47... Rb5 {[%clk 0:00:18.7]} 48. Kg4 {[%clk
0:01:00.8]} 48... Rb3 {[%clk 0:00:19]} 49. Kf4 {[%clk 0:01:00.8]} 49... Kh7
{[%clk 0:00:18.1]} 50. Kg4 {[%clk 0:01:00.5]} 50... Rb4+ {[%clk 0:00:17.4]} 51.
Kg3 {[%clk 0:00:59.8]} 51... Rb3+ {[%clk 0:00:17.8]} 52. Kf4 {[%clk 0:00:59.8]}
52... Rh3 {[%clk 0:00:16.7]} 53. Kg4 {[%clk 0:01:00]} 53... Rd3 {[%clk
0:00:15.8]} 54. Kf4 {[%clk 0:00:59]} 54... Kg7 {[%clk 0:00:16]} 55. Kg4 {[%clk
0:00:59.2]} 55... Rd4+ {[%clk 0:00:14.6]} 56. Kg3 {[%clk 0:00:58.9]} 56... Rd5
{[%clk 0:00:14.6]} 57. Kg4 {[%clk 0:00:58.8]} 57... Rd3 {[%clk 0:00:14.8]} 58.
Kf4 {[%clk 0:00:58.7]} 58... f6 {[%clk 0:00:13.8]} 59. Ra7+ {[%clk 0:00:57.3]}
59... Kf8 {[%clk 0:00:13.9]} 60. gxf6 {[%clk 0:00:57]} 60... Rb3 {[%clk
0:00:13.8]} 61. Kg5 {[%clk 0:00:55.1]} 61... Rg3+ {[%clk 0:00:13.3]} 62. Kh6
{[%clk 0:00:55.5]} 62... Rh3+ {[%clk 0:00:13.4]} 63. Kxg6 {[%clk 0:00:55.7]}
63... Rg3+ {[%clk 0:00:13.7]} 64. Kf5 {[%clk 0:00:55.2]} 64... Rf3+ {[%clk
0:00:13.9]} 65. Kg5 {[%clk 0:00:55.6]} 65... Rg3+ {[%clk 0:00:13.7]} 66. Kf4
{[%clk 0:00:56.1]} 66... Rg1 {[%clk 0:00:13.5]} 67. Rxa3 {[%clk 0:00:53.8]}
67... Kf7 {[%clk 0:00:13.5]} 68. Rf3 {[%clk 0:00:47.4]} 68... Kxf6 {[%clk
0:00:12.1]} 69. Ke3+ {[%clk 0:00:47.9]} 69... Ke6 {[%clk 0:00:12]} 70. Kf2
{[%clk 0:00:48.8]} 70... Rg6 {[%clk 0:00:11.8]} 71. Ra3 {[%clk 0:00:47.8]} 71...
Rf6+ {[%clk 0:00:11.6]} 72. Ke3 {[%clk 0:00:47.9]} 72... Kf7 {[%clk 0:00:11.6]}
73. Ke4 {[%clk 0:00:47.8]} 73... Re6+ {[%clk 0:00:11.3]} 74. Kf5 {[%clk
0:00:47.8]} 74... Re1 {[%clk 0:00:11.1]} 75. Ra7+ {[%clk 0:00:47]} 75... Ke8
{[%clk 0:00:11.5]} 76. Kf6 {[%clk 0:00:47.1]} 76... Rf1+ {[%clk 0:00:11.4]} 77.
Ke5 {[%clk 0:00:47.3]} 77... Re1+ {[%clk 0:00:11.5]} 78. Kd4 {[%clk 0:00:47.4]}
78... Rd1+ {[%clk 0:00:11.4]} 79. Ke3 {[%clk 0:00:47.7]} 79... Rd7 {[%clk
0:00:11.7]} 80. Ra8+ {[%clk 0:00:45.9]} 80... Rd8 {[%clk 0:00:11.8]} 81. Rxd8+
{[%clk 0:00:43.6]} 81... Kxd8 {[%clk 0:00:11.6]} 1/2-1/2

[Event "*** Titled Tuesday Blitz"]
[Site "Chess.com"]
[Date "2020.04.07"]
[Round "6"]
[White "AttilaTurzo"]
[Black "Zurability"]
[Result "1-0"]
[WhiteElo "2515"]
[BlackElo "2658"]
[TimeControl "180+1"]
[EndTime "14:09:06 PDT"]
[Termination "AttilaTurzo won by checkmate"]

1. d4 {[%clk 0:03:00.9]} 1... Nf6 {[%clk 0:02:59.8]} 2. Nf3 {[%clk 0:02:53.6]}
2... e6 {[%clk 0:02:57]} 3. Bf4 {[%clk 0:02:32.7]} 3... Be7 {[%clk 0:02:54.8]}
4. e3 {[%clk 0:02:24.6]} 4... Nh5 {[%clk 0:02:54.7]} 5. Be5 {[%clk 0:02:23.6]}
5... d6 {[%clk 0:02:54.3]} 6. Bg3 {[%clk 0:02:20.1]} 6... Nxg3 {[%clk
0:02:53.2]} 7. hxg3 {[%clk 0:02:21]} 7... c5 {[%clk 0:02:43.9]} 8. c3 {[%clk
0:02:17.3]} 8... h6 {[%clk 0:02:26.1]} 9. Nbd2 {[%clk 0:02:16.1]} 9... cxd4
{[%clk 0:02:21.4]} 10. cxd4 {[%clk 0:02:14.4]} 10... Nd7 {[%clk 0:02:03.1]} 11.
Be2 {[%clk 0:02:11]} 11... b6 {[%clk 0:01:59.4]} 12. Rc1 {[%clk 0:02:10.4]}
12... Bb7 {[%clk 0:01:59.4]} 13. O-O {[%clk 0:02:05.8]} 13... O-O {[%clk
0:01:58.4]} 14. Qa4 {[%clk 0:01:59.8]} 14... a6 {[%clk 0:01:54.9]} 15. Qb3
{[%clk 0:01:58.2]} 15... e5 {[%clk 0:01:52.6]} 16. Rfd1 {[%clk 0:01:52.4]} 16...
e4 {[%clk 0:01:49.6]} 17. Ne1 {[%clk 0:01:50.8]} 17... d5 {[%clk 0:01:50]} 18.
Nc2 {[%clk 0:01:43.4]} 18... Bd6 {[%clk 0:01:49.3]} 19. Nb4 {[%clk 0:01:41.1]}
19... Nf6 {[%clk 0:01:47.1]} 20. Nc6 {[%clk 0:01:39.5]} 20... Qc7 {[%clk
0:01:37.9]} 21. Na5 {[%clk 0:01:11.6]} 21... Qd7 {[%clk 0:01:36.7]} 22. Qxb6
{[%clk 0:01:08.9]} 22... Rfb8 {[%clk 0:01:25.2]} 23. Ndb3 {[%clk 0:01:02.2]}
23... Bc8 {[%clk 0:01:02.5]} 24. Qc6 {[%clk 0:01:01.2]} 24... Bb4 {[%clk
0:00:55.8]} 25. Qxd7 {[%clk 0:00:57.8]} 25... Bxd7 {[%clk 0:00:55.6]} 26. Nc6
{[%clk 0:00:56.5]} 26... Bxc6 {[%clk 0:00:48.6]} 27. Rxc6 {[%clk 0:00:57.4]}
27... a5 {[%clk 0:00:49.5]} 28. a4 {[%clk 0:00:53.9]} 28... Ne8 {[%clk
0:00:33.7]} 29. Rdc1 {[%clk 0:00:47.8]} 29... Kf8 {[%clk 0:00:24]} 30. R1c2
{[%clk 0:00:44.7]} 30... Ke7 {[%clk 0:00:22.1]} 31. Bb5 {[%clk 0:00:43.2]} 31...
Nd6 {[%clk 0:00:21.8]} 32. Rc7+ {[%clk 0:00:42.5]} 32... Kf8 {[%clk 0:00:22.1]}
33. Bc6 {[%clk 0:00:41.5]} 33... Ra6 {[%clk 0:00:16.2]} 34. Bxd5 {[%clk
0:00:41.3]} 34... Rab6 {[%clk 0:00:14.7]} 35. R7c6 {[%clk 0:00:37]} 35... Ke7
{[%clk 0:00:13.9]} 36. Rxb6 {[%clk 0:00:36]} 36... Rxb6 {[%clk 0:00:14.8]} 37.
Kf1 {[%clk 0:00:32.6]} 37... g5 {[%clk 0:00:12.4]} 38. Ke2 {[%clk 0:00:32]}
38... Kd7 {[%clk 0:00:12.9]} 39. Nc5+ {[%clk 0:00:29.3]} 39... Ke7 {[%clk
0:00:10.5]} 40. b3 {[%clk 0:00:27.9]} 40... f5 {[%clk 0:00:10.2]} 41. Ne6 {[%clk
0:00:25.4]} 41... Rb8 {[%clk 0:00:07.8]} 42. Rc7+ {[%clk 0:00:24.5]} 42... Kf6
{[%clk 0:00:08]} 43. Nc5 {[%clk 0:00:22]} 43... Kg6 {[%clk 0:00:05.2]} 44. Nd7
{[%clk 0:00:20.7]} 44... Rd8 {[%clk 0:00:04.3]} 45. Ne5+ {[%clk 0:00:20.6]}
45... Kf6 {[%clk 0:00:04.7]} 46. Rh7 {[%clk 0:00:19.1]} 46... Rc8 {[%clk
0:00:01.8]} 47. Rxh6+ {[%clk 0:00:18.9]} 47... Ke7 {[%clk 0:00:02.4]} 48. Re6+
{[%clk 0:00:17.6]} 48... Kd8 {[%clk 0:00:02.5]} 49. Nc6+ {[%clk 0:00:16]} 49...
Kd7 {[%clk 0:00:03.1]} 50. Ne5+ {[%clk 0:00:15.2]} 50... Kd8 {[%clk 0:00:02.4]}
51. Nc4 {[%clk 0:00:15.3]} 51... Nxc4 {[%clk 0:00:01.7]} 52. bxc4 {[%clk
0:00:15.5]} 52... Rb8 {[%clk 0:00:02.6]} 53. Bc6 {[%clk 0:00:14.8]} 53... Be7
{[%clk 0:00:03.5]} 54. Bb5 {[%clk 0:00:14.4]} 54... Rc8 {[%clk 0:00:03.9]} 55.
c5 {[%clk 0:00:14.6]} 55... Rc7 {[%clk 0:00:03.1]} 56. Re5 {[%clk 0:00:14.5]}
56... Bf6 {[%clk 0:00:02.1]} 57. Rxf5 {[%clk 0:00:14.2]} 57... Ke7 {[%clk
0:00:03]} 58. Rd5 {[%clk 0:00:13.5]} 58... Ke6 {[%clk 0:00:03]} 59. Rd6+ {[%clk
0:00:13.7]} 59... Ke7 {[%clk 0:00:03.9]} 60. Ra6 {[%clk 0:00:13]} 60... Rc8
{[%clk 0:00:03.9]} 61. Rxa5 {[%clk 0:00:13]} 61... Rh8 {[%clk 0:00:04.2]} 62.
Ra7+ {[%clk 0:00:12.7]} 62... Ke6 {[%clk 0:00:04.9]} 63. Bd7+ {[%clk 0:00:11.9]}
63... Kd5 {[%clk 0:00:05.2]} 64. Ra6 {[%clk 0:00:10.4]} 64... Be7 {[%clk
0:00:05]} 65. Be6# {[%clk 0:00:10.5]} 1-0

[Event "*** Titled Tuesday Blitz"]
[Site "Chess.com"]
[Date "2020.04.07"]
[Round "6"]
[White "Rish_97"]
[Black "politeplayer"]
[Result "1-0"]
[WhiteElo "2574"]
[BlackElo "2215"]
[TimeControl "180+1"]
[EndTime "14:09:07 PDT"]
[Termination "Rish_97 won by resignation"]

1. e4 {[%clk 0:03:00.9]} 1... e6 {[%clk 0:02:59.5]} 2. d4 {[%clk 0:03:00.7]}
2... d5 {[%clk 0:02:59.6]} 3. Nc3 {[%clk 0:02:58]} 3... dxe4 {[%clk 0:02:59.6]}
4. Nxe4 {[%clk 0:02:58]} 4... Nd7 {[%clk 0:03:00.2]} 5. Nf3 {[%clk 0:02:57.5]}
5... Ngf6 {[%clk 0:03:00.6]} 6. Nxf6+ {[%clk 0:02:53]} 6... Nxf6 {[%clk
0:03:00.5]} 7. Be3 {[%clk 0:02:40.7]} 7... Bd6 {[%clk 0:02:51.7]} 8. Bd3 {[%clk
0:02:31.6]} 8... O-O {[%clk 0:02:51]} 9. O-O {[%clk 0:02:31.9]} 9... b6 {[%clk
0:02:50.1]} 10. Qe2 {[%clk 0:02:26.8]} 10... Bb7 {[%clk 0:02:48.5]} 11. Rad1
{[%clk 0:02:27.3]} 11... h6 {[%clk 0:02:04.9]} 12. Ne5 {[%clk 0:02:25.9]} 12...
c5 {[%clk 0:01:49.6]} 13. c3 {[%clk 0:02:22.7]} 13... Qc7 {[%clk 0:01:44.5]} 14.
Bf4 {[%clk 0:02:10.3]} 14... Nd5 {[%clk 0:01:32.1]} 15. Bc1 {[%clk 0:01:56.5]}
15... cxd4 {[%clk 0:01:25.1]} 16. cxd4 {[%clk 0:01:57.4]} 16... Nb4 {[%clk
0:01:16.6]} 17. Bb1 {[%clk 0:01:55.1]} 17... Ba6 {[%clk 0:01:06.6]} 18. Nd3
{[%clk 0:01:10.5]} 18... Bxh2+ {[%clk 0:00:53.8]} 19. Kh1 {[%clk 0:01:10.5]}
19... Bd6 {[%clk 0:00:44.2]} 20. Qe4 {[%clk 0:00:43.8]} 20... Bb7 {[%clk
0:00:34.5]} 21. Qg4 {[%clk 0:00:41]} 21... f5 {[%clk 0:00:31.5]} 22. Qe2 {[%clk
0:00:36.9]} 22... Qe7 {[%clk 0:00:27.7]} 23. Ne5 {[%clk 0:00:17.4]} 23... Qh4+
{[%clk 0:00:20.2]} 24. Kg1 {[%clk 0:00:17.5]} 24... Rf6 {[%clk 0:00:16.5]} 25.
f3 {[%clk 0:00:11.1]} 25... Bxe5 {[%clk 0:00:11.5]} 26. dxe5 {[%clk 0:00:11]}
26... Rg6 {[%clk 0:00:11]} 27. Qf2 {[%clk 0:00:11.2]} 27... Qxf2+ {[%clk
0:00:09.4]} 28. Kxf2 {[%clk 0:00:12.1]} 28... Nd5 {[%clk 0:00:09.6]} 29. Bd3
{[%clk 0:00:10]} 29... Rg5 {[%clk 0:00:09.5]} 30. Bxg5 {[%clk 0:00:09.8]} 30...
hxg5 {[%clk 0:00:09.8]} 31. Bc4 {[%clk 0:00:10.6]} 31... Rc8 {[%clk 0:00:09.7]}
32. b3 {[%clk 0:00:10.7]} 32... b5 {[%clk 0:00:09.7]} 33. Bxd5 {[%clk 0:00:11]}
33... Rc2+ {[%clk 0:00:09.4]} 34. Ke3 {[%clk 0:00:10.7]} 34... Bxd5 {[%clk
0:00:09.8]} 35. Rd2 {[%clk 0:00:11.3]} 35... Rc3+ {[%clk 0:00:09.6]} 36. Ke2
{[%clk 0:00:11.8]} 36... Rc8 {[%clk 0:00:09]} 37. Rfd1 {[%clk 0:00:11.8]} 37...
b4 {[%clk 0:00:08.7]} 38. Ke3 {[%clk 0:00:08.5]} 38... f4+ {[%clk 0:00:07.7]}
39. Kf2 {[%clk 0:00:08.4]} 39... Rc3 {[%clk 0:00:07.1]} 40. Rd4 {[%clk
0:00:08.2]} 40... a5 {[%clk 0:00:06.7]} 41. R1d3 {[%clk 0:00:08.3]} 41... Rc2+
{[%clk 0:00:05.6]} 42. Rd2 {[%clk 0:00:08.9]} 42... Rc3 {[%clk 0:00:05.8]} 43.
R4d3 {[%clk 0:00:08.3]} 43... Rc5 {[%clk 0:00:05.7]} 44. g3 {[%clk 0:00:08.7]}
44... Kf7 {[%clk 0:00:05.5]} 45. gxf4 {[%clk 0:00:08.9]} 45... gxf4 {[%clk
0:00:05.9]} 46. Rd4 {[%clk 0:00:09.8]} 46... Kg6 {[%clk 0:00:05.9]} 47. Rxf4
{[%clk 0:00:09.8]} 47... Rc3 {[%clk 0:00:06.6]} 48. Rg4+ {[%clk 0:00:10]} 48...
Kf5 {[%clk 0:00:06.4]} 49. Rg3 {[%clk 0:00:10.3]} 49... Kxe5 {[%clk 0:00:06.4]}
50. Re2+ {[%clk 0:00:09.3]} 50... Kf6 {[%clk 0:00:06]} 51. Re3 {[%clk
0:00:08.7]} 51... Rc2+ {[%clk 0:00:05.7]} 52. Re2 {[%clk 0:00:09.1]} 52... Rc3
{[%clk 0:00:06.2]} 53. Rd2 {[%clk 0:00:08.6]} 53... Rc2 {[%clk 0:00:05.7]} 54.
Rxc2 {[%clk 0:00:08.7]} 1-0